[Event "Late-Titled-Tuesday-Blitz-May-28-2024"]
[Site "Chess.com"]
[Date "2024.05.28"]
[Round "2"]
[White "Problematique_99"]
[Black "DeTimmerman"]
[Result "1/2-1/2"]
[WhiteElo "2498"]
[BlackElo "2744"]
[TimeControl "180+1"]
[EndTime "14:19:46 PDT"]
[Termination "Game drawn by repetition"]

1. a3 {[%clk 0:03:00.2]} 1... Nf6 {[%clk 0:02:59.1]} 2. b4 {[%clk 0:02:59.2]}
2... a5 {[%clk 0:02:57.2]} 3. Bb2 {[%clk 0:02:58.5]} 3... axb4 {[%clk
0:02:56.8]} 4. axb4 {[%clk 0:02:59.4]} 4... Rxa1 {[%clk 0:02:56.8]} 5. Bxa1
{[%clk 0:03:00.3]} 5... c6 {[%clk 0:02:54.8]} 6. e3 {[%clk 0:02:57.8]} 6... Qb6
{[%clk 0:02:53.6]} 7. c3 {[%clk 0:02:53.3]} 7... d5 {[%clk 0:02:53.9]} 8. Nf3
{[%clk 0:02:52.2]} 8... Bf5 {[%clk 0:02:54]} 9. Be2 {[%clk 0:02:44]} 9... Qa7
{[%clk 0:02:53]} 10. Nd4 {[%clk 0:02:23]} 10... Bg6 {[%clk 0:02:52.4]} 11. Nb3
{[%clk 0:02:22.8]} 11... Nbd7 {[%clk 0:02:48.5]} 12. O-O {[%clk 0:02:18]} 12...
e6 {[%clk 0:02:46.9]} 13. d3 {[%clk 0:02:14.4]} 13... Bd6 {[%clk 0:02:47.2]} 14.
N1d2 {[%clk 0:02:12]} 14... O-O {[%clk 0:02:45.1]} 15. Bb2 {[%clk 0:02:11.2]}
15... Ra8 {[%clk 0:02:45.1]} 16. Qc2 {[%clk 0:02:09.9]} 16... Qb8 {[%clk
0:02:43.2]} 17. g3 {[%clk 0:02:06.9]} 17... b6 {[%clk 0:02:38.3]} 18. e4 {[%clk
0:02:06.8]} 18... c5 {[%clk 0:02:26.5]} 19. bxc5 {[%clk 0:01:57.4]} 19... bxc5
{[%clk 0:02:26.3]} 20. c4 {[%clk 0:01:54.2]} 20... dxe4 {[%clk 0:02:09.8]} 21.
dxe4 {[%clk 0:01:52.8]} 21... Be5 {[%clk 0:02:08.1]} 22. Bxe5 {[%clk 0:01:44.6]}
22... Qxe5 {[%clk 0:02:09]} 23. f4 {[%clk 0:01:39.6]} 23... Qc7 {[%clk
0:01:52.7]} 24. Bd3 {[%clk 0:01:19.6]} 24... h6 {[%clk 0:01:42.6]} 25. e5 {[%clk
0:01:17.2]} 25... Bxd3 {[%clk 0:01:43.5]} 26. Qxd3 {[%clk 0:01:17.3]} 26... Nh7
{[%clk 0:01:38]} 27. Ne4 {[%clk 0:01:14.4]} 27... Nhf8 {[%clk 0:01:31.3]} 28.
Qd6 {[%clk 0:01:10]} 28... Qb7 {[%clk 0:01:20.4]} 29. Nbxc5 {[%clk 0:01:07.7]}
29... Nxc5 {[%clk 0:01:21.3]} 30. Nxc5 {[%clk 0:01:07]} 30... Qb4 {[%clk
0:01:21.8]} 31. Nd7 {[%clk 0:00:47.5]} 31... Qxc4 {[%clk 0:01:15.1]} 32. Nb6
{[%clk 0:00:44.7]} 32... Qa6 {[%clk 0:01:00]} 33. Nxa8 {[%clk 0:00:43.4]} 33...
Qxa8 {[%clk 0:01:00.9]} 34. Rb1 {[%clk 0:00:42.3]} 34... Qe4 {[%clk 0:00:57.4]}
35. Rd1 {[%clk 0:00:35.8]} 35... Ng6 {[%clk 0:00:48.5]} 36. Qd8+ {[%clk
0:00:34.7]} 36... Kh7 {[%clk 0:00:48.4]} 37. Qd3 {[%clk 0:00:35.2]} 37... Qa4
{[%clk 0:00:48.9]} 38. h4 {[%clk 0:00:35.2]} 38... h5 {[%clk 0:00:43.2]} 39. Qf3
{[%clk 0:00:32.3]} 39... Kh6 {[%clk 0:00:37.4]} 40. Rf1 {[%clk 0:00:26.6]} 40...
Ne7 {[%clk 0:00:34.1]} 41. g4 {[%clk 0:00:24.9]} 41... hxg4 {[%clk 0:00:33.5]}
42. Qxg4 {[%clk 0:00:25.8]} 42... Nf5 {[%clk 0:00:34]} 43. Rf2 {[%clk
0:00:11.3]} 43... Qa1+ {[%clk 0:00:31.7]} 44. Kh2 {[%clk 0:00:11.2]} 44... Qe1
{[%clk 0:00:28.9]} 45. Rg2 {[%clk 0:00:11]} 45... Qxh4+ {[%clk 0:00:18]} 46.
Qxh4+ {[%clk 0:00:11.3]} 46... Nxh4 {[%clk 0:00:18.9]} 47. Rf2 {[%clk
0:00:11.1]} 47... Kh5 {[%clk 0:00:17.8]} 48. Kh3 {[%clk 0:00:11.1]} 48... Nf5
{[%clk 0:00:18]} 49. Rg2 {[%clk 0:00:10.9]} 49... g6 {[%clk 0:00:18.1]} 50. Rg5+
{[%clk 0:00:11.1]} 50... Kh6 {[%clk 0:00:18.7]} 51. Kg4 {[%clk 0:00:09.2]} 51...
Ne3+ {[%clk 0:00:18.8]} 52. Kf3 {[%clk 0:00:09.7]} 52... Nd5 {[%clk 0:00:19.7]}
53. Rg1 {[%clk 0:00:10.1]} 53... Ne7 {[%clk 0:00:19]} 54. Rh1+ {[%clk
0:00:10.5]} 54... Kg7 {[%clk 0:00:19]} 55. Rd1 {[%clk 0:00:11.4]} 55... Nd5
{[%clk 0:00:19.2]} 56. Rd3 {[%clk 0:00:09.5]} 56... Ne7 {[%clk 0:00:18]} 57. Ke4
{[%clk 0:00:09.7]} 57... Nf5 {[%clk 0:00:17.3]} 58. Rd7 {[%clk 0:00:10]} 58...
Ng3+ {[%clk 0:00:16.7]} 59. Kf3 {[%clk 0:00:10]} 59... Nh5 {[%clk 0:00:17.6]}
60. Ra7 {[%clk 0:00:09.3]} 60... Kf8 {[%clk 0:00:16.7]} 61. Ke4 {[%clk
0:00:09.4]} 61... Ng7 {[%clk 0:00:17.1]} 62. Kf3 {[%clk 0:00:09.9]} 62... Nf5
{[%clk 0:00:17.3]} 63. Ke4 {[%clk 0:00:10.5]} 63... Kg7 {[%clk 0:00:17.3]} 64.
Kf3 {[%clk 0:00:11.1]} 64... Nh6 {[%clk 0:00:17.8]} 65. Ke4 {[%clk 0:00:11.7]}
65... Nf5 {[%clk 0:00:16.9]} 66. Kf3 {[%clk 0:00:12]} 66... Kg8 {[%clk
0:00:16.7]} 67. Ke4 {[%clk 0:00:12.4]} 67... Nh4 {[%clk 0:00:16.6]} 68. Ra8+
{[%clk 0:00:11.3]} 68... Kg7 {[%clk 0:00:16.7]} 69. Ra7 {[%clk 0:00:12.2]} 69...
Ng2 {[%clk 0:00:16.6]} 70. Rb7 {[%clk 0:00:12.2]} 70... Nh4 {[%clk 0:00:16.4]}
71. Rb2 {[%clk 0:00:11.8]} 71... Kh6 {[%clk 0:00:15.7]} 72. Rb7 {[%clk
0:00:12.1]} 72... Kg7 {[%clk 0:00:14.9]} 73. Rb2 {[%clk 0:00:12.4]} 73... Nf5
{[%clk 0:00:12.6]} 74. Rb7 {[%clk 0:00:12.3]} 74... Nh6 {[%clk 0:00:12.2]} 75.
Ra7 {[%clk 0:00:12.6]} 75... Ng8 {[%clk 0:00:12.4]} 76. Rb7 {[%clk 0:00:13]}
76... Kf8 {[%clk 0:00:12.8]} 77. Rb8+ {[%clk 0:00:12.9]} 77... Kg7 {[%clk
0:00:12.9]} 78. Rb7 {[%clk 0:00:13.8]} 78... Nh6 {[%clk 0:00:12.7]} 79. Ra7
{[%clk 0:00:14.2]} 1/2-1/2

[Event "Late-Titled-Tuesday-Blitz-May-28-2024"]
[Site "Chess.com"]
[Date "2024.05.28"]
[Round "2"]
[White "nabukatnezarr"]
[Black "topce"]
[Result "1-0"]
[WhiteElo "2658"]
[BlackElo "2398"]
[TimeControl "180+1"]
[EndTime "14:19:53 PDT"]
[Termination "nabukatnezarr won by resignation"]

1. b3 {[%clk 0:03:00.9]} 1... a5 {[%clk 0:02:57.7]} 2. Bb2 {[%clk 0:03:01.8]}
2... a4 {[%clk 0:02:58]} 3. Nf3 {[%clk 0:02:59.3]} 3... axb3 {[%clk 0:02:56.4]}
4. axb3 {[%clk 0:02:54]} 4... Rxa1 {[%clk 0:02:55.6]} 5. Bxa1 {[%clk 0:02:54.9]}
5... Nf6 {[%clk 0:02:55.2]} 6. Bxf6 {[%clk 0:02:53.4]} 6... exf6 {[%clk
0:02:52]} 7. g3 {[%clk 0:02:54.3]} 7... d5 {[%clk 0:02:50.8]} 8. Bg2 {[%clk
0:02:55.2]} 8... c6 {[%clk 0:02:51.1]} 9. O-O {[%clk 0:02:55.9]} 9... Bd6 {[%clk
0:02:50.8]} 10. d4 {[%clk 0:02:55.7]} 10... O-O {[%clk 0:02:50.4]} 11. e3 {[%clk
0:02:56.3]} 11... Re8 {[%clk 0:02:45.5]} 12. Nbd2 {[%clk 0:02:57.2]} 12... Nd7
{[%clk 0:02:44]} 13. c4 {[%clk 0:02:55.3]} 13... Bb4 {[%clk 0:02:32.6]} 14. Qc2
{[%clk 0:02:54.1]} 14... Nf8 {[%clk 0:02:28.8]} 15. Ra1 {[%clk 0:02:49.1]} 15...
Be6 {[%clk 0:02:27.1]} 16. c5 {[%clk 0:02:45.6]} 16... g6 {[%clk 0:02:18.8]} 17.
Ra4 {[%clk 0:02:40.7]} 17... Ba5 {[%clk 0:02:18.7]} 18. Qa2 {[%clk 0:02:39.5]}
18... Bc7 {[%clk 0:02:17.2]} 19. b4 {[%clk 0:02:34]} 19... Bd7 {[%clk
0:02:11.5]} 20. Nb3 {[%clk 0:02:33]} 20... f5 {[%clk 0:02:07.1]} 21. Ra7 {[%clk
0:02:29.3]} 21... Bc8 {[%clk 0:02:05.6]} 22. Ra8 {[%clk 0:02:28.7]} 22... Ne6
{[%clk 0:01:56.7]} 23. Na5 {[%clk 0:02:26.5]} 23... Qd7 {[%clk 0:01:52.8]} 24.
Qb2 {[%clk 0:02:16]} 24... f6 {[%clk 0:01:50.6]} 25. Bf1 {[%clk 0:02:11.4]}
25... Bxa5 {[%clk 0:01:35.8]} 26. bxa5 {[%clk 0:02:07.2]} 26... Nc7 {[%clk
0:01:36.4]} 27. Rb8 {[%clk 0:02:03]} 27... g5 {[%clk 0:01:28.7]} 28. Qd2 {[%clk
0:01:57.8]} 28... Ne6 {[%clk 0:01:24.7]} 29. Bd3 {[%clk 0:01:55.3]} 29... Qc7
{[%clk 0:01:21.8]} 30. Ra8 {[%clk 0:01:43.3]} 30... Ng7 {[%clk 0:01:21.4]} 31.
Qc2 {[%clk 0:01:38.7]} 31... Bd7 {[%clk 0:01:20.2]} 32. Rxe8+ {[%clk 0:01:33]}
32... Bxe8 {[%clk 0:01:20.2]} 33. Bxf5 {[%clk 0:01:23.7]} 33... h5 {[%clk
0:01:16]} 34. Bg6 {[%clk 0:01:16.4]} 34... Bd7 {[%clk 0:01:10.4]} 35. Qc3 {[%clk
0:01:00.1]} 35... Bg4 {[%clk 0:00:59.2]} 36. Nd2 {[%clk 0:01:00.3]} 36... Qd8
{[%clk 0:00:52.9]} 37. Bd3 {[%clk 0:00:59.7]} 37... h4 {[%clk 0:00:51.8]} 38.
Qb4 {[%clk 0:00:59.1]} 38... Bc8 {[%clk 0:00:49.8]} 39. Qb6 {[%clk 0:00:57.9]}
39... Qd7 {[%clk 0:00:48.2]} 40. a6 {[%clk 0:00:57.5]} 40... bxa6 {[%clk
0:00:43]} 41. Bxa6 {[%clk 0:00:58.4]} 41... Bxa6 {[%clk 0:00:43]} 42. Qxa6
{[%clk 0:00:59.3]} 42... h3 {[%clk 0:00:41.2]} 43. Qd3 {[%clk 0:00:51.8]} 43...
Qa7 {[%clk 0:00:38.8]} 44. Qg6 {[%clk 0:00:46.3]} 44... Qa1+ {[%clk 0:00:35.1]}
45. Nf1 {[%clk 0:00:46.8]} 45... Qd1 {[%clk 0:00:31.5]} 46. Qxf6 {[%clk
0:00:44]} 46... g4 {[%clk 0:00:28.2]} 47. Qf4 {[%clk 0:00:32.1]} 47... Kh7
{[%clk 0:00:27.5]} 48. e4 {[%clk 0:00:31.3]} 48... Qxd4 {[%clk 0:00:23.6]} 49.
exd5 {[%clk 0:00:31.3]} 49... Qxc5 {[%clk 0:00:23.6]} 50. Qxg4 {[%clk
0:00:28.5]} 50... Qxd5 {[%clk 0:00:22.5]} 51. Qxh3+ {[%clk 0:00:29.1]} 51... Kg8
{[%clk 0:00:22.8]} 52. Qc8+ {[%clk 0:00:28]} 52... Kf7 {[%clk 0:00:22.3]} 53.
Ne3 {[%clk 0:00:28.9]} 53... Qf3 {[%clk 0:00:20.5]} 54. Qd7+ {[%clk 0:00:28]}
54... Kf6 {[%clk 0:00:20.2]} 55. Qd4+ {[%clk 0:00:27.4]} 55... Kf7 {[%clk
0:00:20.1]} 56. Ng4 {[%clk 0:00:24.2]} 56... c5 {[%clk 0:00:18]} 57. Ne5+ {[%clk
0:00:24.3]} 57... Ke6 {[%clk 0:00:17.2]} 58. Nxf3 {[%clk 0:00:23.6]} 58... cxd4
{[%clk 0:00:18.1]} 59. Nxd4+ {[%clk 0:00:24.5]} 59... Kd5 {[%clk 0:00:17.6]} 60.
Nf3 {[%clk 0:00:25]} 60... Nf5 {[%clk 0:00:18.1]} 61. Kg2 {[%clk 0:00:24.7]}
61... Ke4 {[%clk 0:00:19]} 62. Ng5+ {[%clk 0:00:24.7]} 62... Ke5 {[%clk
0:00:18.2]} 63. h4 {[%clk 0:00:25.4]} 63... Kf6 {[%clk 0:00:18.4]} 64. Nf3
{[%clk 0:00:26.3]} 64... Nd6 {[%clk 0:00:18.3]} 65. Nh2 {[%clk 0:00:26.4]} 65...
Nc4 {[%clk 0:00:19.2]} 66. Ng4+ {[%clk 0:00:26.8]} 66... Kf5 {[%clk 0:00:18.1]}
67. Ne3+ {[%clk 0:00:27.7]} 67... Nxe3+ {[%clk 0:00:17.5]} 68. fxe3 {[%clk
0:00:28.6]} 68... Ke4 {[%clk 0:00:18.1]} 69. h5 {[%clk 0:00:28.6]} 69... Kf5
{[%clk 0:00:18.7]} 70. Kh3 {[%clk 0:00:28.1]} 70... Kg5 {[%clk 0:00:19.6]} 71.
g4 {[%clk 0:00:28.8]} 71... Kh6 {[%clk 0:00:19.8]} 72. Kh4 {[%clk 0:00:29.7]}
72... Kg7 {[%clk 0:00:20.4]} 73. g5 {[%clk 0:00:30.6]} 73... Kf7 {[%clk
0:00:20.4]} 74. Kg4 {[%clk 0:00:31.5]} 74... Ke6 {[%clk 0:00:21]} 75. e4 {[%clk
0:00:32.4]} 75... Ke5 {[%clk 0:00:21.4]} 76. g6 {[%clk 0:00:32.4]} 76... Kxe4
{[%clk 0:00:22.3]} 77. g7 {[%clk 0:00:32.8]} 77... Ke3 {[%clk 0:00:22.2]} 78.
g8=Q {[%clk 0:00:32.8]} 78... Kf2 {[%clk 0:00:23.1]} 79. Kh3 {[%clk 0:00:32.6]}
79... Kf3 {[%clk 0:00:22.9]} 80. h6 {[%clk 0:00:33.1]} 80... Kf4 {[%clk
0:00:23.8]} 81. h7 {[%clk 0:00:34]} 81... Ke5 {[%clk 0:00:24.7]} 82. h8=Q+
{[%clk 0:00:34.9]} 82... Kd6 {[%clk 0:00:25.3]} 83. Qhh7 {[%clk 0:00:35.2]}
83... Ke5 {[%clk 0:00:25.5]} 84. Qhf7 {[%clk 0:00:26.2]} 84... Kd4 {[%clk
0:00:26.4]} 85. Qc7 {[%clk 0:00:24.7]} 85... Ke4 {[%clk 0:00:21.2]} 86. Qd7
{[%clk 0:00:24]} 86... Ke5 {[%clk 0:00:20.5]} 87. Qf8 {[%clk 0:00:22.9]} 87...
Ke4 {[%clk 0:00:19.1]} 88. Qde7+ {[%clk 0:00:23.5]} 88... Kd5 {[%clk 0:00:16.5]}
89. Qfd8+ {[%clk 0:00:24.4]} 89... Kc4 {[%clk 0:00:16.3]} 90. Qec7+ {[%clk
0:00:25.3]} 90... Kb3 {[%clk 0:00:16.2]} 91. Qdb8+ {[%clk 0:00:26.2]} 1-0

[Event "Late-Titled-Tuesday-Blitz-May-28-2024"]
[Site "Chess.com"]
[Date "2024.05.28"]
[Round "2"]
[White "aa175"]
[Black "komogro"]
[Result "0-1"]
[WhiteElo "2801"]
[BlackElo "2560"]
[TimeControl "180+1"]
[EndTime "14:20:07 PDT"]
[Termination "komogro won by resignation"]

1. d4 {[%clk 0:02:46.3]} 1... Nf6 {[%clk 0:02:59.9]} 2. Bf4 {[%clk 0:02:43.1]}
2... e6 {[%clk 0:02:59.7]} 3. e3 {[%clk 0:02:31.6]} 3... c5 {[%clk 0:03:00.2]}
4. Nf3 {[%clk 0:02:30.5]} 4... Qb6 {[%clk 0:03:00.5]} 5. Nc3 {[%clk 0:02:30.4]}
5... Nc6 {[%clk 0:02:54.6]} 6. Nb5 {[%clk 0:02:26.1]} 6... Nd5 {[%clk
0:02:50.5]} 7. Bd6 {[%clk 0:02:25.9]} 7... Nxd4 {[%clk 0:02:46.8]} 8. Bxf8
{[%clk 0:02:17.6]} 8... Nxf3+ {[%clk 0:02:45.1]} 9. Qxf3 {[%clk 0:02:15]} 9...
Kxf8 {[%clk 0:02:44.7]} 10. O-O-O {[%clk 0:02:12.3]} 10... a6 {[%clk 0:02:42.3]}
11. Na3 {[%clk 0:02:07]} 11... Qa5 {[%clk 0:02:37.1]} 12. e4 {[%clk 0:01:38.4]}
12... Nb4 {[%clk 0:02:31.5]} 13. c3 {[%clk 0:01:10.1]} 13... Nc6 {[%clk
0:02:25.9]} 14. Kb1 {[%clk 0:01:07.5]} 14... b5 {[%clk 0:02:24.8]} 15. e5 {[%clk
0:01:04.8]} 15... Qc7 {[%clk 0:02:20.3]} 16. Rd6 {[%clk 0:01:02.9]} 16... Rb8
{[%clk 0:02:17.9]} 17. Qf4 {[%clk 0:00:43.2]} 17... Ne7 {[%clk 0:02:02.1]} 18.
Bd3 {[%clk 0:00:36.5]} 18... Rb6 {[%clk 0:01:54.9]} 19. Rd1 {[%clk 0:00:34.3]}
19... Nd5 {[%clk 0:01:51.6]} 20. Qh4 {[%clk 0:00:34.4]} 20... f6 {[%clk
0:01:31.4]} 21. Be4 {[%clk 0:00:23.9]} 21... Bb7 {[%clk 0:01:07.3]} 22. Qg3
{[%clk 0:00:11.1]} 22... Rxd6 {[%clk 0:01:02.5]} 23. exd6 {[%clk 0:00:11]} 23...
Qc8 {[%clk 0:00:49.7]} 24. c4 {[%clk 0:00:10.2]} 24... Nb4 {[%clk 0:00:45.9]}
25. Bxb7 {[%clk 0:00:08.1]} 25... Qxb7 {[%clk 0:00:46.8]} 26. f3 {[%clk
0:00:04.5]} 26... Kf7 {[%clk 0:00:44.8]} 27. Qf2 {[%clk 0:00:03.4]} 27... Rc8
{[%clk 0:00:44]} 28. Qh4 {[%clk 0:00:03.1]} 28... Kg8 {[%clk 0:00:43.5]} 29. Qh5
{[%clk 0:00:02.1]} 29... Nc6 {[%clk 0:00:42.3]} 30. cxb5 {[%clk 0:00:01.9]}
30... axb5 {[%clk 0:00:42.5]} 31. Rc1 {[%clk 0:00:02.6]} 31... Qb8 {[%clk
0:00:31.5]} 32. Qxc5 {[%clk 0:00:02.3]} 32... Na7 {[%clk 0:00:24.3]} 33. Qb4
{[%clk 0:00:01.5]} 33... Rxc1+ {[%clk 0:00:24.1]} 34. Kxc1 {[%clk 0:00:02.4]}
34... Nc6 {[%clk 0:00:23.5]} 35. Qc5 {[%clk 0:00:01.7]} 35... b4 {[%clk
0:00:22.3]} 36. Nb5 {[%clk 0:00:02.3]} 36... Qa8 {[%clk 0:00:20.3]} 37. a3
{[%clk 0:00:02.2]} 37... bxa3 {[%clk 0:00:20.3]} 38. bxa3 {[%clk 0:00:03.1]}
38... Qa5 {[%clk 0:00:20.4]} 39. Kd1 {[%clk 0:00:02.2]} 39... h5 {[%clk
0:00:20.2]} 40. h4 {[%clk 0:00:02.4]} 40... Ne5 {[%clk 0:00:19.7]} 41. Qc8+
{[%clk 0:00:02.4]} 41... Kh7 {[%clk 0:00:19.9]} 42. Qe8 {[%clk 0:00:02.1]} 42...
Qxb5 {[%clk 0:00:19.2]} 43. Qxh5+ {[%clk 0:00:02.3]} 43... Kg8 {[%clk
0:00:19.5]} 44. Qe8+ {[%clk 0:00:03.2]} 44... Kh7 {[%clk 0:00:19.8]} 45. Qh5+
{[%clk 0:00:01.4]} 45... Kg8 {[%clk 0:00:19.9]} 46. Ke1 {[%clk 0:00:01.7]} 46...
Qb1+ {[%clk 0:00:19.2]} 47. Ke2 {[%clk 0:00:01.8]} 47... Qc2+ {[%clk 0:00:18.7]}
48. Ke3 {[%clk 0:00:01.4]} 48... Qc1+ {[%clk 0:00:18.5]} 49. Kf2 {[%clk
0:00:01.5]} 49... Qb2+ {[%clk 0:00:18.4]} 50. Kg3 {[%clk 0:00:01.7]} 50... Nf7
{[%clk 0:00:18.4]} 51. Qc5 {[%clk 0:00:01.3]} 51... Qe5+ {[%clk 0:00:18.3]} 52.
Qxe5 {[%clk 0:00:02]} 52... Nxe5 {[%clk 0:00:19.2]} 53. a4 {[%clk 0:00:02.5]}
53... Nc6 {[%clk 0:00:19.6]} 54. Kg4 {[%clk 0:00:02.1]} 54... Kf7 {[%clk
0:00:19.9]} 55. Kh5 {[%clk 0:00:02.6]} 55... e5 {[%clk 0:00:19.6]} 56. g4 {[%clk
0:00:02.2]} 56... Na5 {[%clk 0:00:17.9]} 57. g5 {[%clk 0:00:01.6]} 57... f5
{[%clk 0:00:17.8]} 58. g6+ {[%clk 0:00:01.4]} 58... Kf6 {[%clk 0:00:18.1]} 59.
f4 {[%clk 0:00:01.8]} 59... Ke6 {[%clk 0:00:14.4]} 60. Kg5 {[%clk 0:00:02.6]}
60... e4 {[%clk 0:00:13.9]} 61. h5 {[%clk 0:00:03.3]} 61... e3 {[%clk
0:00:11.3]} 62. h6 {[%clk 0:00:04.2]} 62... gxh6+ {[%clk 0:00:11.7]} 63. Kxh6
{[%clk 0:00:05.1]} 63... e2 {[%clk 0:00:11.4]} 64. g7 {[%clk 0:00:05.8]} 64...
e1=Q {[%clk 0:00:09.9]} 65. g8=Q+ {[%clk 0:00:06.3]} 65... Kxd6 {[%clk
0:00:10.2]} 66. Qb8+ {[%clk 0:00:05.4]} 66... Ke7 {[%clk 0:00:09.9]} 67. Kg7
{[%clk 0:00:03.4]} 67... Qc3+ {[%clk 0:00:09.2]} 68. Kg6 {[%clk 0:00:02.9]}
68... Nc6 {[%clk 0:00:09]} 69. Qa8 {[%clk 0:00:02]} 69... Qf6+ {[%clk
0:00:08.8]} 70. Kh7 {[%clk 0:00:02.2]} 70... Qh4+ {[%clk 0:00:08.1]} 71. Kg6
{[%clk 0:00:02.3]} 71... Qxf4 {[%clk 0:00:08.3]} 72. a5 {[%clk 0:00:02]} 72...
Qg4+ {[%clk 0:00:08.4]} 73. Kh7 {[%clk 0:00:02]} 73... Qh5+ {[%clk 0:00:08.1]}
74. Kg7 {[%clk 0:00:02.4]} 74... Qg5+ {[%clk 0:00:08.1]} 75. Kh7 {[%clk
0:00:02.6]} 75... Ne5 {[%clk 0:00:08.3]} 76. Qg8 {[%clk 0:00:01.4]} 76... Qxg8+
{[%clk 0:00:07.3]} 77. Kxg8 {[%clk 0:00:01.8]} 77... f4 {[%clk 0:00:07.4]} 78.
a6 {[%clk 0:00:02.4]} 78... Nc6 {[%clk 0:00:07.9]} 0-1

[Event "Late-Titled-Tuesday-Blitz-May-28-2024"]
[Site "Chess.com"]
[Date "2024.05.28"]
[Round "2"]
[White "kaanadayhamle"]
[Black "dawid498"]
[Result "0-1"]
[WhiteElo "2404"]
[BlackElo "2670"]
[TimeControl "180+1"]
[EndTime "14:20:09 PDT"]
[Termination "dawid498 won by checkmate"]

1. d4 {[%clk 0:03:00.9]} 1... Nf6 {[%clk 0:02:59.7]} 2. Nf3 {[%clk 0:03:00.8]}
2... g6 {[%clk 0:03:00.2]} 3. Nc3 {[%clk 0:03:00.7]} 3... d5 {[%clk 0:02:59.7]}
4. g3 {[%clk 0:03:00.3]} 4... Bg7 {[%clk 0:02:59.8]} 5. Bg2 {[%clk 0:03:00.7]}
5... O-O {[%clk 0:03:00.4]} 6. O-O {[%clk 0:03:01.3]} 6... Ne4 {[%clk 0:03:01]}
7. e3 {[%clk 0:02:59.6]} 7... c5 {[%clk 0:02:45]} 8. Ne2 {[%clk 0:02:52.6]} 8...
Nc6 {[%clk 0:02:42.6]} 9. c3 {[%clk 0:02:53]} 9... b6 {[%clk 0:02:28.8]} 10. Nd2
{[%clk 0:02:49.4]} 10... Nf6 {[%clk 0:02:13.3]} 11. Nf4 {[%clk 0:02:45.2]} 11...
Bb7 {[%clk 0:02:09.6]} 12. dxc5 {[%clk 0:02:39.1]} 12... bxc5 {[%clk 0:02:10.5]}
13. Nb3 {[%clk 0:02:39.4]} 13... Ne5 {[%clk 0:01:13.9]} 14. Nxc5 {[%clk
0:02:31.5]} 14... Bc6 {[%clk 0:01:14.4]} 15. Re1 {[%clk 0:02:21.2]} 15... Qd6
{[%clk 0:01:13.4]} 16. Nb3 {[%clk 0:02:18.7]} 16... a5 {[%clk 0:01:12.6]} 17.
Nd4 {[%clk 0:02:18.8]} 17... Bb7 {[%clk 0:01:12.5]} 18. Nd3 {[%clk 0:02:06.8]}
18... Ned7 {[%clk 0:01:05.1]} 19. Nb5 {[%clk 0:01:49.5]} 19... Qb6 {[%clk
0:01:04.1]} 20. a4 {[%clk 0:01:38.8]} 20... Ba6 {[%clk 0:01:04.5]} 21. Nf4
{[%clk 0:01:25.2]} 21... e6 {[%clk 0:01:01.1]} 22. Na3 {[%clk 0:01:23.9]} 22...
Nc5 {[%clk 0:00:58.2]} 23. Rb1 {[%clk 0:00:49]} 23... Qb3 {[%clk 0:00:26.1]} 24.
Qxb3 {[%clk 0:00:20.7]} 24... Nxb3 {[%clk 0:00:27]} 25. Bf1 {[%clk 0:00:21.2]}
25... Ne4 {[%clk 0:00:25.3]} 26. Bxa6 {[%clk 0:00:18.6]} 26... Rxa6 {[%clk
0:00:26.2]} 27. Nd3 {[%clk 0:00:19.5]} 27... Rb8 {[%clk 0:00:19.1]} 28. Nb5
{[%clk 0:00:18.2]} 28... Nd6 {[%clk 0:00:17]} 29. Nxd6 {[%clk 0:00:17.7]} 29...
Rxd6 {[%clk 0:00:17.9]} 30. f3 {[%clk 0:00:15.5]} 30... Kf8 {[%clk 0:00:13]} 31.
Kf2 {[%clk 0:00:15.5]} 31... Rc6 {[%clk 0:00:13.7]} 32. Ke2 {[%clk 0:00:15.4]}
32... Rc4 {[%clk 0:00:14]} 33. Bd2 {[%clk 0:00:10.4]} 33... Rxa4 {[%clk
0:00:13.6]} 34. Nc1 {[%clk 0:00:10.8]} 34... Rc4 {[%clk 0:00:11]} 35. Nxb3
{[%clk 0:00:10.9]} 35... Rxb3 {[%clk 0:00:11.9]} 36. Kd1 {[%clk 0:00:11.1]}
36... Bxc3 {[%clk 0:00:10.4]} 37. Kc2 {[%clk 0:00:06.5]} 37... Bxd2+ {[%clk
0:00:07.4]} 38. Kxb3 {[%clk 0:00:07.2]} 38... Bxe1 {[%clk 0:00:07.3]} 39. Rxe1
{[%clk 0:00:07.2]} 39... a4+ {[%clk 0:00:06.8]} 40. Ka2 {[%clk 0:00:07.2]} 40...
Ke7 {[%clk 0:00:06.4]} 41. Rd1 {[%clk 0:00:07.2]} 41... Kd6 {[%clk 0:00:06.8]}
42. Rd3 {[%clk 0:00:07]} 42... Kc5 {[%clk 0:00:06.7]} 43. Kb1 {[%clk 0:00:06.9]}
43... Kb4 {[%clk 0:00:06.6]} 44. Rd2 {[%clk 0:00:06.3]} 44... h5 {[%clk
0:00:06.7]} 45. h4 {[%clk 0:00:04.5]} 45... Kb3 {[%clk 0:00:06.6]} 46. Rd3+
{[%clk 0:00:04.6]} 46... Kb4 {[%clk 0:00:07.3]} 47. Rd2 {[%clk 0:00:03.5]} 47...
f6 {[%clk 0:00:07.4]} 48. Rd3 {[%clk 0:00:04.1]} 48... Kb5 {[%clk 0:00:03.4]}
49. Rd2 {[%clk 0:00:04.3]} 49... Kc5 {[%clk 0:00:04]} 50. Rd1 {[%clk 0:00:04.2]}
50... e5 {[%clk 0:00:04.4]} 51. Rd2 {[%clk 0:00:04.5]} 51... d4 {[%clk
0:00:04.9]} 52. exd4+ {[%clk 0:00:05.2]} 52... exd4 {[%clk 0:00:04]} 53. Re2
{[%clk 0:00:05.6]} 53... Kd5 {[%clk 0:00:04.4]} 54. Re8 {[%clk 0:00:05.8]} 54...
Rc6 {[%clk 0:00:03]} 55. Rd8+ {[%clk 0:00:05.4]} 55... Kc4 {[%clk 0:00:03.4]}
56. Kc1 {[%clk 0:00:05.1]} 56... Kd3+ {[%clk 0:00:03.5]} 57. Kd1 {[%clk
0:00:05.5]} 57... Ke3 {[%clk 0:00:04.2]} 58. f4 {[%clk 0:00:04.8]} 58... d3
{[%clk 0:00:04.4]} 59. Re8+ {[%clk 0:00:03.3]} 59... Kf3 {[%clk 0:00:05]} 60.
Kd2 {[%clk 0:00:03.1]} 60... Kxg3 {[%clk 0:00:05.3]} 61. Rg8 {[%clk 0:00:03.5]}
61... f5 {[%clk 0:00:05]} 62. Kxd3 {[%clk 0:00:03.3]} 62... Rb6 {[%clk
0:00:05.6]} 63. Ra8 {[%clk 0:00:02.5]} 63... Rxb2 {[%clk 0:00:05.1]} 64. Rxa4
{[%clk 0:00:03.3]} 64... Rb6 {[%clk 0:00:05.4]} 65. Ke3 {[%clk 0:00:04.2]} 65...
Kxh4 {[%clk 0:00:05.1]} 66. Ra1 {[%clk 0:00:04.3]} 66... Rb3+ {[%clk 0:00:04.1]}
67. Kf2 {[%clk 0:00:05]} 67... Kg4 {[%clk 0:00:03.9]} 68. Rg1+ {[%clk
0:00:05.7]} 68... Kxf4 {[%clk 0:00:04.5]} 69. Rxg6 {[%clk 0:00:06.6]} 69... Rb2+
{[%clk 0:00:05.1]} 70. Kg1 {[%clk 0:00:07.1]} 70... h4 {[%clk 0:00:05.5]} 71.
Kh1 {[%clk 0:00:06.8]} 71... Kf3 {[%clk 0:00:03.8]} 72. Rg5 {[%clk 0:00:06]}
72... f4 {[%clk 0:00:04]} 73. Rg1 {[%clk 0:00:06.9]} 73... h3 {[%clk 0:00:03.5]}
74. Rf1+ {[%clk 0:00:07.1]} 74... Rf2 {[%clk 0:00:03.7]} 75. Ra1 {[%clk
0:00:07.3]} 75... Kg3 {[%clk 0:00:03.8]} 76. Rg1+ {[%clk 0:00:07.3]} 76... Rg2
{[%clk 0:00:04]} 77. Ra1 {[%clk 0:00:08]} 77... Rh2+ {[%clk 0:00:04.5]} 78. Kg1
{[%clk 0:00:08.1]} 78... Re2 {[%clk 0:00:05]} 79. Ra8 {[%clk 0:00:07.7]} 79...
Re1# {[%clk 0:00:04.5]} 0-1